bitfinex/quotes_ETHUSD_20240718
["timestamp","ask_amount","ask_price","bid_price","bid_amount"]
[1721268069958,2.91582,3429.6,3429.1,2.91614]
[1721268069959,7.16,3429.6,3429.1,2.91614]
[1721268070159,0.005,3429.8,3429.2,0.2974463]
[1721268070689,0.005,3429.8,3429.4,2.91587]
[1721268070895,0.005,3429.8,3429.5,2.91582]
[1721268071268,0.005,3429.8,3429.7,2.9157]
[1721268071588,0.005,3429.8,3429.7,3.50467844]
[1721268072183,0.005,3429.8,3429.7,6.47868807]
[1721268072396,0.005,3429.8,3429.7,17.70227844]
[1721268072560,0.005,3430.3,3430.2,5.83056]
[1721268072760,0.005,3430.3,3430.2,6.38056]
[1721268073097,0.005,3430.3,3430.2,3.844882]
[1721268073312,0.005,3430.3,3430.2,6.760162]
[1721268073476,0.005,3430.3,3430.2,15.512342]
[1721268073803,0.005,3432.0,3431.9,2.91383]
[1721268074006,0.005,3432.0,3431.9,6.37766]
[1721268074517,1.53094764,3434.6,3433.4,2.91252]
[1721268074518,0.1482488,3434.5,3433.4,2.91252]
[1721268074662,0.1482488,3434.5,3433.2,2.91273]
[1721268074960,2.91218,3433.9,3432.9,2.91297]
[1721268075162,2.91218,3433.9,3432.5,3.0]
[1721268075163,2.91196,3434.2,3433.2,2.91273]
[1721268075404,3.0598788,3434.5,3433.3,3.52085742]
[1721268075562,3.0598788,3434.5,3433.0,0.291297]
[1721268075563,0.1482488,3434.5,3433.0,0.291297]
[1721268075760,3.0599188,3434.5,3433.2,2.91272]
[1721268075961,3.0599188,3434.5,3433.3,0.55]
[1721268076263,3.0599188,3434.5,3434.2,2.91186]
[1721268076264,0.1482488,3434.5,3434.2,2.91186]
[1721268076497,0.1482488,3434.5,3434.3,0.05822944]
[1721268077005,0.1482488,3434.5,3433.7,3.0]
[1721268077203,0.1482488,3434.5,3432.8,2.2932]
[1721268077418,2.6522488,3434.5,3432.8,2.2932]
[1721268077562,2.91184,3434.3,3432.9,1.070631]
[1721268077757,2.91184,3434.3,3432.0,2.504]
[1721268077758,2.91217,3433.9,3432.0,2.504]
[1721268080803,2.91275,3433.2,3431.5,2.91415]
[1721268081015,2.91252,3433.5,3431.3,2.439]
[1721268081192,2.91252,3433.5,3431.6,0.05826599]
[1721268081522,7.31,3434.0,3432.9,2.91297]
[1721268081815,2.91184,3434.3,3433.0,0.55]
[1721268082122,2.91184,3434.3,3433.0,3.46288]
[1721268082701,2.91191,3434.2,3433.0,3.46288]
[1721268083004,2.91223,3433.8,3433.0,0.55]
[1721268083202,2.91223,3433.8,3432.6,2.439]
[1721268083203,3.329,3434.1,3432.7,0.55]
[1721268083514,3.329,3434.1,3432.1,3.0]
[1721268083715,3.0,3434.0,3432.8,2.91306]
[1721268083937,0.33253837,3434.2,3433.0,2.91289]
[1721268084082,3.24444837,3434.2,3433.1,0.90211352]
[1721268084284,2.91198,3434.1,3433.1,3.81492352]
[1721268085720,2.91208,3434.0,3433.1,0.90211352]
[1721268085921,2.91215,3433.9,3433.1,0.55]
[1721268086253,2.91278,3433.2,3432.0,2.91374]
[1721268086384,2.91317,3432.7,3431.9,2.3346]
[1721268086610,2.91317,3432.7,3431.4,3.449588]
[1721268086810,2.91317,3432.7,3431.6,2.91406]
[1721268087549,2.91327,3432.6,3431.5,3.4940388]
[1721268087744,2.91327,3432.6,3431.5,0.5799088]
[1721268088845,2.91375,3432.0,3431.5,0.5799088]
[1721268089043,5.82758,3432.0,3430.9,2.91466]
[1721268089242,2.91375,3432.0,3431.0,2.91458]
[1721268089625,2.91392,3431.8,3430.7,2.91484]
[1721268089945,2.91392,3431.8,3430.8,0.528014]
[1721268090260,2.91382,3432.0,3430.8,3.442774]
[1721268090443,2.91358,3432.2,3431.0,2.91459]
[1721268090619,2.91392,3431.8,3431.0,2.91459]
[1721268090822,2.91369,3432.1,3430.9,2.91468]
[1721268091005,12.52651,3432.6,3431.0,0.6357544]
[1721268091006,9.6132,3432.6,3431.0,0.6357544]
[1721268091207,6.329,3432.7,3430.8,0.528014]
[1721268091208,3.0,3432.7,3431.2,2.9144]
[1721268091414,2.9135,3432.3,3431.5,2.91416]
[1721268091717,3.0,3432.7,3431.3,0.55]
[1721268091718,3.329,3432.7,3431.3,0.55]
[1721268091920,2.91384,3431.9,3431.3,0.55]
[1721268092509,2.91384,3431.9,3431.3,0.346453]
[1721268093245,2.91384,3431.9,3431.1,0.55]
[1721268093448,2.91366,3432.1,3431.1,3.55]
[1721268093449,2.91393,3431.8,3431.1,3.55]
[1721268093658,2.91375,3432.0,3431.1,0.55]
[1721268093957,2.91385,3431.9,3431.1,0.55]
[1721268094168,2.91367,3432.1,3431.1,3.55]
[1721268094353,2.91376,3432.0,3431.2,0.646458]
[1721268094525,2.91385,3431.9,3431.2,3.646458]
[1721268094926,2.91394,3431.8,3431.2,0.646458]
[1721268095159,2.91394,3431.8,3431.1,0.55]
[1721268095468,2.914,3431.7,3431.0,0.55]
[1721268095669,7.31,3432.5,3431.0,0.55]
[1721268095670,2.91409,3431.6,3431.0,0.55]
[1721268095838,2.91421,3431.5,3430.8,0.528014]
[1721268096035,2.91401,3431.7,3430.8,0.528014]
[1721268096259,2.91401,3431.7,3430.9,0.6442864]
[1721268096462,2.91373,3432.1,3430.9,0.6442864]
[1721268096634,7.31,3432.5,3430.8,3.528014]
[1721268096635,2.91397,3431.8,3430.8,3.528014]
[1721268096838,2.91416,3431.6,3430.8,3.528014]
[1721268097052,2.91416,3431.6,3430.8,6.442784]
[1721268097348,2.91397,3431.8,3430.9,0.55]
[1721268097779,7.31,3432.5,3430.9,0.55]
[1721268097780,2.91401,3431.7,3430.9,0.55]
[1721268097967,2.91425,3431.5,3430.9,0.55]
[1721268098271,2.91401,3431.7,3430.5,2.3653]
[1721268098272,2.91436,3431.3,3430.5,2.3653]
[1721268098570,7.31,3431.9,3430.7,2.2889]
[1721268098750,2.91426,3431.4,3430.8,0.55]
[1721268099084,2.91426,3431.4,3429.9,2.91545]
[1721268099085,2.91426,3431.4,3430.3,2.91513]
[1721268099286,2.91426,3431.4,3430.4,1.082193]
[1721268099438,2.91445,3431.2,3430.4,3.997293]
[1721268099633,7.31,3431.9,3430.5,2.91499]
[1721268099832,7.31,3431.9,3430.4,1.082193]
[1721268099833,2.91446,3431.2,3430.6,0.55]
[1721268100164,2.91446,3431.2,3430.4,0.532193]
[1721268100165,2.91454,3431.1,3430.4,3.532193]
[1721268100367,2.91454,3431.1,3430.5,1.1947463]
[1721268100680,2.91438,3431.3,3430.5,1.1947463]
[1721268101585,2.91427,3431.4,3430.5,4.1097563]
[1721268101779,2.91434,3431.3,3430.6,3.0]
[1721268103071,2.91445,3431.2,3430.6,3.0]
[1721268103288,2.91445,3431.2,3430.5,1.1947463]
[1721268103289,2.91459,3431.1,3430.5,0.55]
[1721268103579,2.91468,3430.9,3430.5,0.55]
[1721268103745,2.91468,3430.9,3430.4,0.55]
[1721268103940,2.91468,3430.9,3430.3,0.55]
[1721268104371,2.91459,3431.1,3430.3,0.55]
[1721268104676,2.91461,3431.0,3430.4,0.887201]
[1721268104834,2.91471,3430.9,3430.4,0.887201]
[1721268105241,2.91435,3431.3,3430.1,2.4068]
[1721268105441,2.91435,3431.3,3429.0,4.40092]
[1721268105442,2.91494,3430.6,3429.7,2.91563]
[1721268106076,2.91478,3430.8,3429.8,2.91555]
[1721268106277,7.31,3431.2,3429.8,2.91555]
[1721268106278,2.91485,3430.7,3429.8,2.91555]
[1721268106573,2.91485,3430.7,3429.7,2.91563]
[1721268106574,2.91494,3430.6,3429.9,2.91551]
[1721268106785,2.91483,3430.8,3430.0,3.498544]
[1721268106979,2.91469,3430.9,3430.0,0.583114]
[1721268107350,2.91494,3430.6,3430.0,0.583114]
[1721268107544,2.91494,3430.6,3429.8,5.91555]
[1721268107545,2.91528,3430.2,3429.8,3.0]
[1721268107786,2.91528,3430.2,3429.5,2.4685]
[1721268108164,2.91528,3430.2,3429.0,5.18608]
[1721268108490,2.91478,3430.8,3429.0,5.18608]
[1721268108491,2.91537,3430.1,3429.0,5.18608]
[1721268108785,2.91537,3430.1,3428.1,1.754]
[1721268108786,2.91631,3429.0,3428.0,2.2698]
[1721268108984,2.91563,3429.8,3428.0,2.2698]
[1721268108985,2.91563,3429.8,3428.1,0.22698]
[1721268108986,7.31,3429.6,3428.1,0.22698]
[1721268109359,2.91611,3429.3,3428.2,2.91691]
[1721268109559,2.91611,3429.3,3428.1,0.22698]
[1721268109781,2.91613,3429.2,3428.3,2.91688]
[1721268109980,2.91625,3429.1,3428.4,0.314386]
[1721268110184,2.9161,3429.3,3428.4,3.231196]
[1721268110389,2.91598,3429.4,3428.4,3.231196]
[1721268110576,2.91598,3429.4,3428.5,3.0]
[1721268110777,2.9161,3429.3,3428.6,0.6231196]
[1721268110989,2.91598,3429.4,3428.6,0.6231196]
[1721268111193,2.91597,3429.4,3428.6,3.5396796]
[1721268111359,2.91604,3429.3,3428.7,0.55]
[1721268111695,10.2258,3429.6,3428.7,3.46654]
[1721268111696,2.9158,3429.6,3428.7,3.46654]
[1721268112000,2.9158,3429.6,3428.8,0.70896596]
[1721268112303,2.91597,3429.4,3428.8,0.70896596]
[1721268112589,7.31,3429.9,3428.8,0.70896596]
[1721268112820,10.22555,3429.9,3429.2,2.91612]
[1721268112961,10.22555,3429.9,3428.9,0.55]
[1721268112962,7.31,3429.9,3429.3,3.757652]
[1721268113165,10.22553,3429.9,3429.3,0.841612]
[1721268114191,7.31,3429.9,3429.3,0.841612]
[1721268114506,7.31,3429.9,3429.3,3.757652]
[1721268114656,7.31,3429.9,3429.4,0.3757652]
[1721268114856,2.91559,3429.9,3429.4,0.3757652]
[1721268115056,2.91536,3430.1,3429.3,0.841612]
[1721268115359,7.31,3430.5,3429.6,2.91578]
[1721268115600,7.31,3430.5,3429.4,2.91588]
[1721268115601,2.91526,3430.3,3429.4,2.91588]
[1721268115764,2.91526,3430.3,3429.5,6.46587]
[1721268116078,2.91526,3430.3,3429.6,3.55]
[1721268116266,2.91526,3430.3,3429.7,0.646587]
[1721268120467,8.2704,3431.5,3429.7,0.646587]
[1721268120468,7.31,3431.4,3430.3,2.91518]
[1721268120829,7.31,3431.4,3429.8,2.2869]
[1721268120830,4.59436294,3433.0,3430.9,2.2869]
[1721268120831,7.31,3432.0,3430.9,2.2869]
[1721268121111,2.9135,3432.3,3431.5,2.9141]
[1721268121317,2.9135,3432.3,3431.0,1.070165]
[1721268121318,0.45671337,3433.0,3432.4,2.9134]
[1721268121521,0.45671337,3433.0,3431.8,3.076]
[1721268121522,3.21658464,3434.3,3432.5,3.05825498]
[1721268121676,3.34157449,3434.4,3432.5,3.05825498]
[1721268121677,2.91248,3433.5,3432.6,3.46322]
[1721268122125,2.91223,3433.8,3432.6,3.46322]
[1721268122126,2.91234,3433.7,3432.6,3.46322]
[1721268122273,3.58255079,3434.2,3432.7,2.91309]
[1721268122274,2.91217,3433.9,3432.7,2.91309]
[1721268122471,2.91217,3433.9,3432.6,0.55]
[1721268122472,0.67064079,3434.2,3432.8,6.46306]
[1721268122671,0.67064079,3434.2,3433.1,2.91278]
[1721268122894,6.25329449,3434.4,3432.8,3.0]
[1721268122895,0.01257449,3434.4,3433.2,0.60824406]
[1721268123107,0.01257449,3434.4,3433.5,2.91247]
[1721268123323,0.01257449,3434.4,3434.1,2.91196]
[1721268123611,0.01257449,3434.4,3434.3,2.9118]
[1721268123823,0.01257449,3434.4,3434.3,3.4618]
[1721268124139,3.36681861,3436.1,3434.3,3.4618]
[1721268124140,3.3822019,3437.3,3435.0,2.9112]
[1721268124348,3.3822019,3437.3,3434.4,2.2974]
[1721268124349,2.90967,3436.9,3434.4,2.2974]
[1721268124638,2.4125,3437.2,3434.9,2.91127]
[1721268124639,3.00056329,3436.3,3434.9,2.91127]
[1721268124834,2.91022,3436.2,3435.1,2.9111]
[1721268125054,0.09043329,3436.3,3435.2,2.91095]
[1721268125226,2.91012,3436.3,3435.3,0.55]
[1721268125428,3.49,3437.1,3435.3,0.55]
[1721268125429,3.201222,3436.2,3435.3,0.55]
[1721268125609,2.4125,3437.2,3435.4,2.91086]
[1721268125948,2.91001,3436.5,3435.5,3.60820586]
[1721268126095,2.91012,3436.3,3433.8,5.84879793]
[1721268126299,2.91017,3436.3,3434.2,3.076]
[1721268126558,3.82241151,3437.0,3434.3,3.637376]
[1721268126559,2.91029,3436.1,3434.3,3.637376]
[1721268126836,2.91029,3436.1,3434.4,5.2974]
[1721268126837,2.91089,3435.4,3434.4,5.2974]
[1721268127044,2.91089,3435.4,3434.5,2.91162]
[1721268127242,2.91089,3435.4,3434.6,3.0]
[1721268127536,2.91089,3435.4,3434.4,8.20906]
[1721268127897,2.91089,3435.4,3434.4,11.1207]
[1721268128098,2.91068,3435.7,3434.4,6.4732076]
[1721268128299,2.91068,3435.7,3434.6,2.91152]
[1721268128610,3.82241151,3437.0,3434.7,6.626]
[1721268128611,2.91018,3436.3,3434.7,6.626]
[1721268128835,3.24197151,3437.0,3434.9,2.91123]
[1721268128836,2.9102,3436.2,3434.9,2.91123]
[1721268129003,2.90974,3436.8,3434.7,3.0]
[1721268129004,2.91003,3436.4,3435.2,2.91101]
[1721268129207,2.91017,3436.3,3435.3,4.141101]
[1721268129403,2.91017,3436.3,3435.3,1.141101]
[1721268129603,2.91017,3436.3,3435.4,3.0]
[1721268129805,2.90976,3436.7,3435.5,0.55]
[1721268130049,3.24199151,3437.0,3435.6,2.96888047]
[1721268130199,0.32419915,3436.9,3435.8,2.91052]
[1721268130405,0.32419915,3436.9,3435.9,3.46043]
[1721268130604,0.32419915,3436.9,3435.9,6.46043]
[1721268130838,0.33241151,3437.0,3436.0,2.4443]
[1721268131040,0.33241151,3437.0,3436.3,2.9101]
[1721268131249,0.33241151,3437.0,3436.0,2.4443]
[1721268131250,0.33241151,3437.0,3436.9,5.81918]
[1721268131420,0.33241151,3437.0,3436.9,6.36918]
[1721268131614,0.33241151,3437.0,3436.9,9.36918]
[1721268131963,0.0532019,3437.3,3437.2,2.90934]
[1721268132147,0.0532019,3437.3,3437.2,3.0]
[1721268132511,0.0532019,3437.3,3436.0,2.4443]
[1721268132706,0.0532019,3437.3,3436.2,2.91018]
[1721268132954,0.0532019,3437.3,3436.0,2.4443]
[1721268132955,2.9624719,3437.3,3436.3,0.55]
[1721268133133,0.29624719,3437.2,3435.2,2.4986]
[1721268133341,0.0532019,3437.3,3435.2,2.4986]
[1721268133549,2.90968,3436.8,3435.2,2.4986]
[1721268133851,0.0532019,3437.3,3435.2,2.4986]
[1721268133852,2.9102,3436.2,3435.2,2.4986]
[1721268134052,2.9102,3436.2,3434.4,3.6744076]
[1721268134220,7.31,3436.8,3435.3,2.91091]
[1721268134221,0.29102,3436.1,3435.3,2.91091]
[1721268134415,3.20135,3436.1,3434.5,4.0]
[1721268134815,3.20135,3436.1,3434.4,5.4103]
[1721268134816,6.1117,3436.1,3434.8,2.91137]
[1721268135016,6.1117,3436.1,3434.4,2.4986]
[1721268135017,2.91055,3435.8,3434.6,2.91154]
[1721268135259,3.20137,3436.1,3434.8,2.91135]
[1721268135425,2.91039,3436.0,3434.9,0.291135]
[1721268135764,3.20137,3436.1,3434.5,2.91156]
[1721268135765,2.9106,3435.8,3434.5,2.91156]
[1721268135909,0.29102,3436.1,3434.4,2.4986]
[1721268136108,0.29102,3436.1,3434.5,2.91159]
[1721268136109,2.91087,3435.4,3434.5,2.91159]
[1721268136546,2.9108,3435.5,3434.4,2.4986]
[1721268136708,7.31,3436.0,3434.4,2.4986]
[1721268137043,2.9107,3435.6,3434.6,2.91154]
[1721268137255,2.9107,3435.6,3434.5,0.24986]
[1721268137256,2.9107,3435.6,3434.7,2.91145]
[1721268137413,2.9107,3435.6,3434.8,3.0]
[1721268137614,2.91045,3435.9,3434.6,3.0]
[1721268137861,2.91071,3435.6,3434.7,2.91144]
[1721268138015,2.91056,3435.8,3434.8,5.91137]
[1721268138221,7.31,3436.0,3434.8,5.91137]
[1721268138549,7.31,3436.0,3435.1,2.91111]
[1721268138852,7.31,3436.0,3435.2,0.55]
[1721268139053,2.91037,3436.0,3435.2,0.55]
[1721268139285,7.31,3436.6,3435.5,2.91074]
[1721268139444,2.91002,3436.4,3435.5,2.91074]
[1721268139648,0.731,3436.5,3435.6,2.96886448]
[1721268140170,7.31,3436.6,3435.6,2.96886448]
[1721268140171,7.31,3436.6,3435.7,3.46058]
[1721268140389,2.9096,3436.9,3435.9,2.91043]
[1721268140554,2.90944,3437.1,3436.1,2.91026]
[1721268140764,2.9096,3436.9,3436.1,2.91026]
[1721268141450,2.90941,3437.2,3436.1,2.91026]
[1721268141652,3.20569119,3437.1,3436.1,2.91026]
[1721268141853,0.29626119,3437.1,3436.1,2.91026]
[1721268142167,0.29626119,3437.1,3435.7,0.55]
[1721268142168,0.0532019,3437.3,3436.2,2.91018]
[1721268142377,0.0532019,3437.3,3436.3,0.55]
[1721268142974,2.9624619,3437.3,3436.3,0.55]
[1721268143174,2.9624619,3437.3,3436.5,2.90993]
[1721268143485,0.0532019,3437.3,3436.7,2.90973]
[1721268143780,0.0532019,3437.3,3437.2,2.90934]
[1721268144067,0.1482488,3437.9,3437.2,2.90934]
[1721268144253,0.1482488,3437.9,3437.3,0.05817507]
[1721268144462,0.1482488,3437.9,3437.6,2.909]
[1721268144666,0.1482488,3437.9,3437.6,2.90893]
[1721268144838,0.1482488,3437.9,3437.6,3.490743]
[1721268145243,0.1482488,3437.9,3437.7,2.3221]
[1721268145548,7.31,3439.8,3437.7,2.3221]
[1721268145549,13.12437,3439.8,3438.2,3.076]
[1721268145772,3.36269013,3440.4,3438.3,3.55]
[1721268145773,2.90731,3439.6,3438.3,3.55]
[1721268146073,2.90767,3439.2,3438.2,2.90846]
[1721268146261,2.90676,3440.3,3438.5,2.90821]
[1721268146462,2.90747,3439.5,3438.5,2.90821]
[1721268146674,2.90721,3439.8,3437.8,0.55]
[1721268146879,2.90752,3439.4,3438.1,2.90854]
[1721268147086,2.90773,3439.2,3437.8,6.45878]
[1721268147265,2.90774,3439.1,3438.0,2.90865]
[1721268147470,0.290774,3439.0,3438.1,3.55]
[1721268147774,0.290774,3439.0,3438.1,0.55]
[1721268147980,0.290774,3439.0,3437.7,5.23101]
[1721268147981,0.290774,3439.0,3437.7,2.90891]
[1721268148299,0.290774,3439.0,3437.8,0.55]
[1721268148588,2.4943,3439.3,3437.8,0.55]
[1721268148801,2.4943,3439.3,3437.0,2.4456]
[1721268148802,2.4943,3439.3,3437.0,5.35511]
[1721268149084,2.90861,3438.1,3437.0,5.35511]
[1721268149302,2.90868,3438.0,3437.1,2.90942]
[1721268149451,2.90876,3437.9,3436.8,3.555613]
[1721268149654,2.90868,3438.0,3436.8,2.90964]
[1721268149880,2.90868,3438.0,3436.4,5.3495]
[1721268149881,2.90885,3437.8,3436.6,2.90984]
[1721268150084,2.90885,3437.8,3436.4,5.19451]
[1721268150085,2.90886,3437.8,3436.4,5.19451]
[1721268150418,3.0,3438.5,3436.5,0.05818457]
[1721268150607,3.0,3438.5,3436.4,2.2845]
[1721268150608,2.90842,3438.3,3437.2,2.90933]
[1721268150750,1.031,3438.4,3437.5,2.90908]
[1721268150951,2.90824,3438.5,3436.6,0.23426846]
[1721268150952,2.90824,3438.5,3437.1,2.90942]
[1721268151186,10.31,3439.1,3436.9,2.90957]
[1721268151187,2.90876,3437.9,3436.9,2.90957]
[1721268151394,10.31,3439.1,3436.6,0.23426846]
[1721268151395,2.90782,3439.0,3436.6,0.23426846]
[1721268151597,2.90882,3437.9,3436.6,0.23426846]
[1721268151779,2.90882,3437.9,3436.7,0.55]
[1721268151979,2.90882,3437.9,3436.9,2.90959]
[1721268152158,2.90858,3438.1,3437.1,2.90935]
[1721268152362,2.90858,3438.1,3436.8,0.66941085]
[1721268152363,7.36067174,3439.3,3436.8,0.66941085]
[1721268152661,1.754,3442.8,3436.8,0.66941085]
[1721268152662,0.16446436,3442.1,3439.2,6.39765]
[1721268152871,0.16446436,3442.1,3441.6,2.90559]
[1721268153116,2.90243,3445.4,3441.4,2.90579]
[1721268153117,2.90352,3444.1,3441.9,2.90531]
[1721268153260,1.7,3445.8,3442.2,2.90503]
[1721268153261,2.90314,3444.6,3442.2,2.90503]
[1721268153461,1.163515,3445.8,3442.3,0.55]
[1721268153462,4.065635,3445.8,3442.3,0.55]
[1721268153669,2.4859,3446.1,3442.4,2.48538055]
[1721268153893,2.4859,3446.1,3443.0,2.90441]
[1721268153894,2.90217,3445.7,3443.0,2.90441]
[1721268154177,3.49,3445.9,3443.0,5.80879]
[1721268154372,2.90089,3447.3,3442.6,2.90472]
[1721268154373,2.9029,3444.9,3442.6,2.90472]
[1721268154579,2.90227,3445.6,3442.7,3.55]
[1721268154817,2.90227,3445.6,3442.5,0.85353806]
[1721268154818,3.49,3445.6,3442.5,0.85353806]
[1721268154973,3.49,3445.6,3442.6,0.32808381]
[1721268155175,2.90251,3445.3,3442.7,3.45462]
[1721268155451,2.4713,3445.8,3442.7,0.55]
[1721268155776,2.90229,3445.6,3443.1,2.90435]
[1721268156086,2.4713,3445.8,3443.1,0.55]
[1721268156291,2.4713,3445.8,3442.2,2.90509]
[1721268156292,3.49,3445.3,3442.2,2.90509]
[1721268156601,2.90341,3444.3,3442.3,3.195489]
[1721268156910,2.90341,3444.3,3440.6,3.49]
[1721268156911,2.3774,3444.1,3440.9,2.4255]
[1721268157114,2.90384,3443.8,3441.9,2.90531]
[1721268157519,3.0,3443.7,3441.9,2.90531]
[1721268157877,3.0,3443.7,3441.5,2.90566]
[1721268157878,2.90409,3443.5,3441.5,2.90566]
[1721268158182,2.90409,3443.5,3440.9,2.4255]
[1721268158489,2.90409,3443.5,3440.5,2.90651]
[1721268158490,0.290409,3443.4,3441.0,3.14861]
[1721268158720,2.3774,3444.1,3441.8,2.90538]
[1721268158721,3.0,3444.0,3441.8,2.90538]
[1721268159024,2.90375,3443.9,3442.2,2.90507]
[1721268159392,2.90435,3443.2,3441.1,2.90597]
[1721268159577,3.0,3443.8,3441.0,0.24255]
[1721268159777,3.0,3443.8,3440.4,5.8266]
[1721268159778,2.90406,3443.5,3441.7,2.90553]
[1721268159978,5.90413,3443.4,3441.5,2.90564]
[1721268160422,2.90439,3443.1,3441.5,2.90564]
[1721268160775,3.0,3443.4,3441.5,2.90562]
[1721268161014,3.0,3443.5,3441.1,2.90598]
[1721268161187,3.20414,3443.4,3441.6,2.90554]
[1721268161388,0.3,3443.4,3441.6,2.90554]
[1721268161588,0.3,3443.4,3442.0,2.90526]
[1721268162150,6.20413,3443.4,3441.8,2.90541]
[1721268162351,6.20413,3443.4,3441.9,3.45535]
[1721268162559,0.620413,3443.3,3442.0,2.90525]
[1721268162758,0.620413,3443.3,3441.9,1.186097]
[1721268162759,2.3774,3444.1,3442.1,0.55]
[1721268162995,2.3774,3444.1,3442.7,2.90468]
[1721268163254,2.3774,3444.1,3442.1,3.065]
[1721268163255,2.9037,3443.9,3442.4,2.90491]
[1721268163413,2.9037,3443.9,3441.9,1.186097]
[1721268163414,2.90361,3444.0,3442.2,2.90509]
[1721268163615,2.9042,3443.3,3441.9,4.091417]
[1721268163818,0.29042,3443.2,3440.5,2.90648]
[1721268164163,0.29042,3443.2,3440.4,2.92]
[1721268164164,2.9043,3443.2,3441.6,2.90558]
[1721268164461,2.9043,3443.2,3441.7,2.90551]
[1721268164462,2.90428,3443.2,3441.7,2.90551]
[1721268164820,2.90428,3443.2,3442.0,2.90525]
[1721268165021,2.90403,3443.5,3442.0,2.90525]
[1721268165217,3.0,3443.8,3442.1,2.90519]
[1721268165423,0.3,3443.7,3442.2,0.34861068]
[1721268165659,2.9041,3443.4,3442.2,0.290519]
[1721268165814,2.3774,3444.1,3441.9,2.90535]
[1721268166020,2.90361,3444.0,3441.9,2.90535]
[1721268166324,2.3774,3444.1,3442.2,2.9051]
[1721268166559,0.24306019,3444.0,3442.3,0.34551]
[1721268166728,3.24306019,3444.0,3442.3,0.34551]
[1721268166917,3.14666019,3444.0,3442.4,0.6080857]
[1721268167117,3.14666019,3444.0,3442.6,2.90477]
[1721268167322,2.90369,3443.9,3442.6,2.90477]
[1721268167627,2.90377,3443.8,3442.6,3.58110757]
[1721268167831,0.84809521,3443.9,3442.8,2.90457]
[1721268168333,2.9036,3444.0,3442.7,2.90468]
[1721268168659,2.90369,3443.9,3442.7,2.90468]
[1721268168823,3.35239754,3443.9,3442.7,3.60825876]
[1721268169129,0.44870754,3443.9,3442.8,2.9046]
[1721268169460,0.44870754,3443.9,3442.4,2.90493]
[1721268169673,2.90394,3443.6,3442.4,2.90493]
[1721268169818,2.90403,3443.5,3442.4,2.90493]
[1721268170025,3.484827,3443.5,3442.4,2.90493]
[1721268170346,0.580797,3443.5,3442.4,2.90493]
[1721268170519,0.44870754,3443.9,3442.5,2.90485]
[1721268170725,2.90377,3443.8,3442.7,2.90462]
[1721268170947,2.90377,3443.8,3442.5,2.90485]
[1721268170948,0.44870754,3443.9,3442.8,2.9046]
[1721268171167,0.0532019,3444.2,3443.2,2.90425]
[1721268171464,0.0532019,3444.2,3443.9,2.90367]
[1721268171675,0.0532019,3444.2,3443.3,0.60806686]
[1721268171676,0.0532019,3444.2,3444.1,2.90351]
[1721268171824,2.90231,3445.6,3444.3,2.90334]
[1721268172025,2.90231,3445.6,3443.6,2.90392]
[1721268172026,2.90267,3445.1,3443.6,2.90386]
[1721268172260,2.90277,3445.0,3443.7,3.194226]
[1721268172559,2.90267,3445.1,3443.7,3.194226]
[1721268172560,2.90286,3444.9,3443.7,3.194226]
[1721268172773,2.90286,3444.9,3442.9,2.90445]
[1721268172774,3.0513388,3444.7,3442.3,0.34551]
[1721268173091,0.1482488,3444.7,3442.6,2.90477]
[1721268173400,0.1482488,3444.7,3443.9,2.90366]
[1721268173535,0.1482488,3444.7,3444.2,2.90337]
[1721268173741,0.1482488,3444.7,3443.8,2.90373]
[1721268173939,0.1482488,3444.7,3443.2,2.89547898]
[1721268174165,0.1482488,3444.7,3442.9,2.90444]
[1721268174166,2.90351,3444.2,3442.9,2.90444]
[1721268174373,2.90351,3444.2,3442.7,0.55]
[1721268174374,2.90368,3443.9,3442.7,2.90466]
[1721268174673,5.80763,3443.8,3442.6,2.90477]
[1721268174835,5.80763,3443.8,3442.4,2.9049]
[1721268174836,2.90379,3443.8,3442.4,2.9049]
[1721268175283,2.90379,3443.8,3442.7,2.90462]
[1721268176481,2.90379,3443.8,3442.6,2.90475]
[1721268176640,2.90379,3443.8,3442.7,3.195155]
[1721268177144,2.90379,3443.8,3442.8,2.90461]
[1721268177571,2.90387,3443.7,3442.7,0.290475]
[1721268177934,2.90387,3443.7,3442.4,2.90494]
[1721268178159,2.90411,3443.4,3442.3,2.90503]
[1721268178795,2.90396,3443.6,3442.4,2.90492]
[1721268178968,2.9038,3443.8,3442.7,2.90468]
[1721268179161,2.90386,3443.7,3442.7,0.635953]
[1721268179473,2.90386,3443.7,3442.4,0.55]
[1721268179661,2.90403,3443.5,3442.0,2.90521]
[1721268179861,2.90438,3443.1,3442.0,2.90521]
[1721268180111,2.90382,3443.8,3442.0,2.90521]
[1721268180268,2.90427,3443.2,3442.0,2.90521]
[1721268180473,2.90427,3443.2,3441.8,2.90545]
[1721268180474,2.90377,3443.8,3442.4,2.90494]
[1721268180685,2.3158,3444.1,3442.4,2.90494]
[1721268180862,2.90428,3443.2,3442.2,2.9051]
[1721268181066,2.90411,3443.4,3442.4,2.90489]
[1721268181378,2.90408,3443.5,3442.5,2.90485]
[1721268181579,2.90394,3443.6,3442.2,2.9051]
[1721268181779,2.90454,3442.9,3441.8,2.90545]
[1721268182105,2.90454,3442.9,3441.7,2.90552]
[1721268182422,2.90454,3442.9,3440.9,2.9062]
[1721268182423,2.90479,3442.6,3440.9,2.9062]